[Event "Titled Tuesday Blitz January 03 Late 2023"]
[White "Vlassov, Nikolai"]
[Black "Duda, Jan-Krzysztof"]
[WhiteFideId "4103360"]
[BlackFideId "1170546"]
[WhiteElo "2283"]
[BlackElo "2724"]
[Result "1-0"]
[Round "02"]
[TimeControl "180+2"]
[Date "2023.01.03"]
[WhiteClock "0:00:43"]
[BlackClock "0:00:03"]

1. e4 {[%clk 0:03:00]}  c5 {[%clk 0:02:58]} 2. c3 {[%clk 0:03:00]}  Nf6 {[%clk 0:02:57]} 3. e5 {[%clk 0:03:00]}  Nd5 {[%clk 0:02:57]} 4. d4 {[%clk 0:03:01]}  cxd4 {[%clk 0:02:58]} 5. cxd4 {[%clk 0:03:02]}  e6 {[%clk 0:02:56]} 6. Nc3 {[%clk 0:03:02]}  Nxc3 {[%clk 0:02:54]} 7. bxc3 {[%clk 0:03:03]}  b6 {[%clk 0:02:55]} 8. f4 {[%clk 0:03:02]}  Bb7 {[%clk 0:02:55]} 9. Nf3 {[%clk 0:03:02]}  Be4 {[%clk 0:02:46]} 10. Bd3 {[%clk 0:02:42]}  Bxd3 {[%clk 0:02:46]} 11. Qxd3 {[%clk 0:02:43]}  g6 {[%clk 0:02:45]} 12. O-O {[%clk 0:02:42]}  d5 {[%clk 0:02:40]} 13. a4 {[%clk 0:02:31]}  Nc6 {[%clk 0:02:39]} 14. Ra2 {[%clk 0:02:24]}  h5 {[%clk 0:02:33]} 15. Ng5 {[%clk 0:01:57]}  Be7 {[%clk 0:02:26]} 16. Ba3 {[%clk 0:01:54]}  Rc8 {[%clk 0:02:08]} 17. g3 {[%clk 0:01:47]}  Bxg5 {[%clk 0:01:51]} 18. fxg5 {[%clk 0:01:47]}  Qxg5 {[%clk 0:01:52]} 19. Raf2 {[%clk 0:01:41]}  f5 {[%clk 0:01:52]} 20. exf6 {[%clk 0:01:38]}  Kf7 {[%clk 0:01:46]} 21. Bc1 {[%clk 0:01:30]}  Qg4 {[%clk 0:01:35]} 22. Rf4 {[%clk 0:01:28]}  Qg5 {[%clk 0:01:34]} 23. Rh4 {[%clk 0:01:21]}  Qf5 {[%clk 0:01:19]} 24. Rxf5 {[%clk 0:01:20]}  exf5 {[%clk 0:01:20]} 25. Bg5 {[%clk 0:01:11]}  Rhe8 {[%clk 0:01:18]} 26. Rf4 {[%clk 0:01:11]}  Na5 {[%clk 0:01:12]} 27. Qb5 {[%clk 0:01:06]}  Rcd8 {[%clk 0:01:06]} 28. Rf2 {[%clk 0:00:57]}  Nc4 {[%clk 0:00:24]} 29. Qc6 {[%clk 0:00:53]}  Re1+ {[%clk 0:00:22]} 30. Kg2 {[%clk 0:00:52]}  Rde8 {[%clk 0:00:03]} 31. Qd7+ {[%clk 0:00:43]} 1-0


[Site "https://www.chess.com"]

[Event "Titled Tuesday Blitz January 03 Late 2023"]
[White "Martinez Alcantara, Jose Eduardo"]
[Black "Popilski, Gil"]
[WhiteFideId "3805662"]
[BlackFideId "2809060"]
[WhiteElo "2619"]
[BlackElo "2443"]
[Result "1-0"]
[Round "02"]
[TimeControl "180+2"]
[Date "2023.01.03"]
[WhiteClock "0:00:04"]
[BlackClock "0:00:34"]

1. e4 {[%clk 0:03:00]}  e5 {[%clk 0:02:56]} 2. Nf3 {[%clk 0:03:01]}  Nf6 {[%clk 0:02:54]} 3. Nxe5 {[%clk 0:03:00]}  d6 {[%clk 0:02:54]} 4. Nf3 {[%clk 0:03:00]}  Nxe4 {[%clk 0:02:55]} 5. d4 {[%clk 0:02:54]}  d5 {[%clk 0:02:55]} 6. Bd3 {[%clk 0:02:55]}  Bd6 {[%clk 0:02:54]} 7. O-O {[%clk 0:02:55]}  O-O {[%clk 0:02:54]} 8. c4 {[%clk 0:02:56]}  c6 {[%clk 0:02:54]} 9. Re1 {[%clk 0:02:55]}  Bf5 {[%clk 0:02:53]} 10. Qb3 {[%clk 0:02:46]}  Na6 {[%clk 0:02:45]} 11. Nc3 {[%clk 0:02:15]}  Re8 {[%clk 0:02:20]} 12. cxd5 {[%clk 0:01:52]}  cxd5 {[%clk 0:02:16]} 13. Qxd5 {[%clk 0:01:16]}  Nxc3 {[%clk 0:02:03]} 14. Rxe8+ {[%clk 0:00:51]}  Qxe8 {[%clk 0:02:04]} 15. Qxf5 {[%clk 0:00:51]}  g6 {[%clk 0:02:03]} 16. Qf6 {[%clk 0:00:39]}  Ne2+ {[%clk 0:01:31]} 17. Bxe2 {[%clk 0:00:35]}  Qxe2 {[%clk 0:01:32]} 18. Bh6 {[%clk 0:00:30]}  Bf8 {[%clk 0:01:32]} 19. Bxf8 {[%clk 0:00:18]}  Rxf8 {[%clk 0:01:33]} 20. d5 {[%clk 0:00:15]}  Nb4 {[%clk 0:01:26]} 21. d6 {[%clk 0:00:15]}  Nd3 {[%clk 0:01:26]} 22. Qd4 {[%clk 0:00:10]}  Rd8 {[%clk 0:01:04]} 23. Rf1 {[%clk 0:00:05]}  Nxb2 {[%clk 0:00:57]} 24. Ne5 {[%clk 0:00:05]}  Na4 {[%clk 0:00:48]} 25. Ng4 {[%clk 0:00:04]}  b5 {[%clk 0:00:35]} 26. Nh6+ {[%clk 0:00:04]}  Kf8 {[%clk 0:00:34]} 27. Qh8# {[%clk 0:00:04]} 1-0


[Site "https://www.chess.com"]

[Event "Titled Tuesday Blitz January 03 Late 2023"]
[White "Caruana, Fabiano"]
[Black "Gascon Del Nogal, Jose Rafael"]
[WhiteFideId "2020009"]
[BlackFideId "3902463"]
[WhiteElo "2764"]
[BlackElo "2459"]
[Result "1-0"]
[Round "02"]
[TimeControl "180+2"]
[Date "2023.01.03"]
[WhiteClock "0:00:35"]
[BlackClock "0:00:02"]

1. c4 {[%clk 0:03:00]}  e5 {[%clk 0:02:57]} 2. e3 {[%clk 0:03:00]}  Nf6 {[%clk 0:02:55]} 3. Nc3 {[%clk 0:02:59]}  g6 {[%clk 0:02:50]} 4. Nf3 {[%clk 0:02:57]}  d6 {[%clk 0:02:49]} 5. d4 {[%clk 0:02:57]}  exd4 {[%clk 0:02:49]} 6. exd4 {[%clk 0:02:53]}  Bg7 {[%clk 0:02:48]} 7. Qe2+ {[%clk 0:02:52]}  Kf8 {[%clk 0:02:32]} 8. g3 {[%clk 0:02:50]}  Bg4 {[%clk 0:02:29]} 9. Bg2 {[%clk 0:02:46]}  Nc6 {[%clk 0:02:28]} 10. Be3 {[%clk 0:02:40]}  Qd7 {[%clk 0:02:27]} 11. O-O {[%clk 0:02:38]}  Re8 {[%clk 0:02:24]} 12. Qd2 {[%clk 0:02:38]}  Bh3 {[%clk 0:02:16]} 13. d5 {[%clk 0:02:35]}  Ne5 {[%clk 0:01:59]} 14. Nxe5 {[%clk 0:02:34]}  Rxe5 {[%clk 0:01:58]} 15. f3 {[%clk 0:02:10]}  h5 {[%clk 0:01:21]} 16. Bd4 {[%clk 0:02:03]}  Bxg2 {[%clk 0:01:17]} 17. Kxg2 {[%clk 0:01:54]}  Rf5 {[%clk 0:01:13]} 18. Rae1 {[%clk 0:01:45]}  c5 {[%clk 0:00:51]} 19. Be3 {[%clk 0:01:39]}  h4 {[%clk 0:00:37]} 20. g4 {[%clk 0:01:37]}  h3+ {[%clk 0:00:38]} 21. Kh1 {[%clk 0:01:30]}  Re5 {[%clk 0:00:38]} 22. Bf4 {[%clk 0:01:26]}  Rxe1 {[%clk 0:00:38]} 23. Rxe1 {[%clk 0:01:19]}  Kg8 {[%clk 0:00:32]} 24. Nb5 {[%clk 0:01:05]}  Bf8 {[%clk 0:00:13]} 25. Qc3 {[%clk 0:00:54]}  Bg7 {[%clk 0:00:11]} 26. Qe3 {[%clk 0:00:50]}  Kh7 {[%clk 0:00:03]} 27. Nxd6 {[%clk 0:00:48]}  Nxg4 {[%clk 0:00:04]} 28. fxg4 {[%clk 0:00:47]}  Qxg4 {[%clk 0:00:05]} 29. Rg1 {[%clk 0:00:40]}  Qh5 {[%clk 0:00:04]} 30. Nxf7 {[%clk 0:00:38]}  Bd4 {[%clk 0:00:03]} 31. Ng5+ {[%clk 0:00:36]}  Qxg5 {[%clk 0:00:01]} 32. Bxg5 {[%clk 0:00:35]}  Bxe3 {[%clk 0:00:02]} 33. Bxe3 {[%clk 0:00:35]} 1-0


[Site "https://www.chess.com"]

[Event "Titled Tuesday Blitz January 03 Late 2023"]
[White "Kollars, Dmitrij"]
[Black "Shuvalova, Polina"]
[WhiteFideId "12909572"]
[BlackFideId "24171760"]
[WhiteElo "2607"]
[BlackElo "2484"]
[Result "1-0"]
[Round "02"]
[TimeControl "180+2"]
[Date "2023.01.03"]
[WhiteClock "0:00:50"]
[BlackClock "0:00:01"]

1. d4 {[%clk 0:03:00]}  Nf6 {[%clk 0:02:53]} 2. Nf3 {[%clk 0:03:00]}  d5 {[%clk 0:02:51]} 3. c3 {[%clk 0:02:59]}  Nbd7 {[%clk 0:02:48]} 4. Bf4 {[%clk 0:02:58]}  e6 {[%clk 0:02:48]} 5. e3 {[%clk 0:02:58]}  Bd6 {[%clk 0:02:48]} 6. Bd3 {[%clk 0:02:58]}  O-O {[%clk 0:02:42]} 7. O-O {[%clk 0:02:57]}  Bxf4 {[%clk 0:02:41]} 8. exf4 {[%clk 0:02:58]}  c5 {[%clk 0:02:40]} 9. Nbd2 {[%clk 0:02:57]}  b6 {[%clk 0:02:40]} 10. Re1 {[%clk 0:02:57]}  a5 {[%clk 0:02:39]} 11. Qe2 {[%clk 0:02:56]}  a4 {[%clk 0:02:36]} 12. a3 {[%clk 0:02:53]}  Nb8 {[%clk 0:02:35]} 13. Rad1 {[%clk 0:02:45]}  Ba6 {[%clk 0:02:34]} 14. Bxa6 {[%clk 0:02:40]}  Nxa6 {[%clk 0:02:27]} 15. h4 {[%clk 0:02:33]}  Qc7 {[%clk 0:02:26]} 16. g3 {[%clk 0:02:32]}  Nb8 {[%clk 0:02:20]} 17. c4 {[%clk 0:02:28]}  Nc6 {[%clk 0:01:59]} 18. f5 {[%clk 0:02:09]}  exf5 {[%clk 0:01:51]} 19. dxc5 {[%clk 0:02:07]}  bxc5 {[%clk 0:01:42]} 20. cxd5 {[%clk 0:02:07]}  Nxd5 {[%clk 0:01:35]} 21. Qc4 {[%clk 0:02:07]}  Rfd8 {[%clk 0:01:12]} 22. Qxc5 {[%clk 0:02:05]}  Ne5 {[%clk 0:01:07]} 23. Qxc7 {[%clk 0:01:54]}  Nxf3+ {[%clk 0:01:07]} 24. Nxf3 {[%clk 0:01:55]}  Nxc7 {[%clk 0:01:07]} 25. Rxd8+ {[%clk 0:01:51]}  Rxd8 {[%clk 0:01:08]} 26. Re7 {[%clk 0:01:52]}  Ne6 {[%clk 0:01:03]} 27. Ra7 {[%clk 0:01:50]}  Nc5 {[%clk 0:01:01]} 28. Ne5 {[%clk 0:01:41]}  h6 {[%clk 0:00:42]} 29. h5 {[%clk 0:01:34]}  f6 {[%clk 0:00:14]} 30. Ng6 {[%clk 0:01:29]}  Rd1+ {[%clk 0:00:11]} 31. Kg2 {[%clk 0:01:29]}  Rd2 {[%clk 0:00:11]} 32. Ne7+ {[%clk 0:01:17]}  Kf8 {[%clk 0:00:12]} 33. Nxf5 {[%clk 0:01:18]}  Rxb2 {[%clk 0:00:10]} 34. Nxg7 {[%clk 0:01:02]}  Nd3 {[%clk 0:00:04]} 35. Ne6+ {[%clk 0:00:55]}  Ke8 {[%clk 0:00:05]} 36. Kf3 {[%clk 0:00:54]}  Rxf2+ {[%clk 0:00:04]} 37. Ke3 {[%clk 0:00:54]}  Ra2 {[%clk 0:00:01]} 38. Kxd3 {[%clk 0:00:49]}  Rxa3+ {[%clk 0:00:02]} 39. Ke4 {[%clk 0:00:49]}  Rxg3 {[%clk 0:00:03]} 40. Kf5 {[%clk 0:00:50]}  Rf3+ {[%clk 0:00:02]} 41. Kg6 {[%clk 0:00:51]}  a3 {[%clk 0:00:03]} 42. Kxh6 {[%clk 0:00:50]}  Re3 {[%clk 0:00:02]} 43. Ng7+ {[%clk 0:00:50]}  Kf8 {[%clk 0:00:02]} 44. Nf5 {[%clk 0:00:50]}  Rf3 {[%clk 0:00:02]} 45. Kg6 {[%clk 0:00:50]}  a2 {[%clk 0:00:01]} 46. Ra8# {[%clk 0:00:50]} 1-0


[Site "https://www.chess.com"]

[Event "Titled Tuesday Blitz January 03 Late 2023"]
[White "Bluebaum, Matthias"]
[Black "Weetik, Vjacheslav"]
[WhiteFideId "24651516"]
[BlackFideId "4153472"]
[WhiteElo "2669"]
[BlackElo "2423"]
[Result "1-0"]
[Round "02"]
[TimeControl "180+2"]
[Date "2023.01.03"]
[WhiteClock "0:01:12"]
[BlackClock "0:01:01"]

1. d4 {[%clk 0:03:00]}  d5 {[%clk 0:02:54]} 2. c4 {[%clk 0:03:01]}  e6 {[%clk 0:02:53]} 3. Nc3 {[%clk 0:03:01]}  Nf6 {[%clk 0:02:51]} 4. cxd5 {[%clk 0:03:02]}  exd5 {[%clk 0:02:48]} 5. Bg5 {[%clk 0:03:02]}  c6 {[%clk 0:02:48]} 6. e3 {[%clk 0:03:02]}  Be7 {[%clk 0:02:46]} 7. Bd3 {[%clk 0:03:03]}  Nbd7 {[%clk 0:02:44]} 8. h3 {[%clk 0:03:03]}  g6 {[%clk 0:02:39]} 9. Nf3 {[%clk 0:03:02]}  Nh5 {[%clk 0:02:39]} 10. Bxe7 {[%clk 0:02:58]}  Qxe7 {[%clk 0:02:39]} 11. O-O {[%clk 0:02:54]}  Nb6 {[%clk 0:02:38]} 12. Rb1 {[%clk 0:02:40]}  a5 {[%clk 0:02:23]} 13. a3 {[%clk 0:02:39]}  Ng7 {[%clk 0:02:22]} 14. b4 {[%clk 0:02:38]}  axb4 {[%clk 0:02:22]} 15. axb4 {[%clk 0:02:39]}  Bf5 {[%clk 0:02:21]} 16. b5 {[%clk 0:02:39]}  Nc4 {[%clk 0:02:09]} 17. bxc6 {[%clk 0:02:36]}  bxc6 {[%clk 0:02:09]} 18. e4 {[%clk 0:02:02]}  dxe4 {[%clk 0:01:55]} 19. Bxc4 {[%clk 0:01:59]}  exf3 {[%clk 0:01:55]} 20. Re1 {[%clk 0:01:59]}  Be6 {[%clk 0:01:53]} 21. d5 {[%clk 0:02:00]}  cxd5 {[%clk 0:01:50]} 22. Nxd5 {[%clk 0:01:57]}  Qd8 {[%clk 0:01:40]} 23. Nf6+ {[%clk 0:01:22]}  Qxf6 {[%clk 0:01:32]} 24. Qd6 {[%clk 0:01:21]}  Qe7 {[%clk 0:01:02]} 25. Qc6+ {[%clk 0:01:21]}  Kf8 {[%clk 0:01:00]} 26. Qxa8+ {[%clk 0:01:21]}  Ne8 {[%clk 0:01:01]} 27. Bxe6 {[%clk 0:01:14]}  fxe6 {[%clk 0:01:01]} 28. Qxf3+ {[%clk 0:01:14]}  Kg7 {[%clk 0:01:01]} 29. Rb7 {[%clk 0:01:14]}  Nc7 {[%clk 0:01:01]} 30. Qc3+ {[%clk 0:01:12]} 1-0


[Site "https://www.chess.com"]

[Event "Titled Tuesday Blitz January 03 Late 2023"]
[White "Sebag, Marie"]
[Black "Tari, Aryan"]
[WhiteFideId "617822"]
[BlackFideId "1510045"]
[WhiteElo "2430"]
[BlackElo "2642"]
[Result "0-1"]
[Round "02"]
[TimeControl "180+2"]
[Date "2023.01.03"]
[WhiteClock "0:00:11"]
[BlackClock "0:00:31"]

1. e4 {[%clk 0:03:00]}  e5 {[%clk 0:02:36]} 2. Nf3 {[%clk 0:02:59]}  Nc6 {[%clk 0:02:32]} 3. Bc4 {[%clk 0:02:55]}  Nf6 {[%clk 0:02:28]} 4. d3 {[%clk 0:02:54]}  Bc5 {[%clk 0:02:21]} 5. c3 {[%clk 0:02:53]}  d6 {[%clk 0:02:21]} 6. Nbd2 {[%clk 0:02:50]}  a6 {[%clk 0:02:22]} 7. Bb3 {[%clk 0:02:49]}  Ba7 {[%clk 0:02:22]} 8. Nf1 {[%clk 0:02:48]}  Be6 {[%clk 0:02:21]} 9. Ng3 {[%clk 0:02:47]}  O-O {[%clk 0:02:19]} 10. O-O {[%clk 0:02:46]}  h6 {[%clk 0:02:17]} 11. d4 {[%clk 0:02:43]}  Bxb3 {[%clk 0:02:13]} 12. axb3 {[%clk 0:02:43]}  exd4 {[%clk 0:02:13]} 13. cxd4 {[%clk 0:02:43]}  Re8 {[%clk 0:02:11]} 14. Re1 {[%clk 0:02:41]}  a5 {[%clk 0:02:08]} 15. h3 {[%clk 0:02:38]}  Bb6 {[%clk 0:02:08]} 16. Bf4 {[%clk 0:02:31]}  Qd7 {[%clk 0:01:26]} 17. Qd2 {[%clk 0:02:28]}  d5 {[%clk 0:01:19]} 18. e5 {[%clk 0:02:25]}  Ne4 {[%clk 0:01:19]} 19. Nxe4 {[%clk 0:02:09]}  dxe4 {[%clk 0:01:20]} 20. Rxe4 {[%clk 0:02:09]}  Qd5 {[%clk 0:01:08]} 21. Rae1 {[%clk 0:02:04]}  Re6 {[%clk 0:01:08]} 22. Bg3 {[%clk 0:01:34]}  Rd8 {[%clk 0:01:05]} 23. Rg4 {[%clk 0:01:24]}  Nxd4 {[%clk 0:01:00]} 24. Nxd4 {[%clk 0:01:23]}  Bxd4 {[%clk 0:01:01]} 25. Bh4 {[%clk 0:01:21]}  Bxe5 {[%clk 0:00:57]} 26. Qc2 {[%clk 0:00:52]}  Rde8 {[%clk 0:00:47]} 27. Rd1 {[%clk 0:00:50]}  Rc6 {[%clk 0:00:43]} 28. Qe2 {[%clk 0:00:30]}  Qxb3 {[%clk 0:00:41]} 29. Re4 {[%clk 0:00:15]}  Rce6 {[%clk 0:00:36]} 30. Re3 {[%clk 0:00:14]}  Qxb2 {[%clk 0:00:33]} 31. Qg4 {[%clk 0:00:12]}  Qb4 {[%clk 0:00:32]} 32. Qf3 {[%clk 0:00:11]}  Qxh4 {[%clk 0:00:31]} 0-1


[Site "https://www.chess.com"]

[Event "Titled Tuesday Blitz January 03 Late 2023"]
[White "Sjugirov, Sanan"]
[Black "Baskin, Robert"]
[WhiteFideId "4189302"]
[BlackFideId "24662402"]
[WhiteElo "2712"]
[BlackElo "2442"]
[Result "1-0"]
[Round "02"]
[TimeControl "180+2"]
[Date "2023.01.03"]
[WhiteClock "0:00:15"]
[BlackClock "0:00:20"]

1. e4 {[%clk 0:02:57]}  Nc6 {[%clk 0:02:59]} 2. Nf3 {[%clk 0:02:56]}  d6 {[%clk 0:02:59]} 3. d4 {[%clk 0:02:56]}  Nf6 {[%clk 0:03:00]} 4. Nc3 {[%clk 0:02:53]}  g6 {[%clk 0:03:00]} 5. d5 {[%clk 0:02:44]}  Nb8 {[%clk 0:03:00]} 6. Be2 {[%clk 0:02:43]}  Bg7 {[%clk 0:03:00]} 7. O-O {[%clk 0:02:43]}  O-O {[%clk 0:03:00]} 8. a4 {[%clk 0:02:39]}  c6 {[%clk 0:02:59]} 9. h3 {[%clk 0:02:34]}  a5 {[%clk 0:02:36]} 10. Nd4 {[%clk 0:02:32]}  Qc7 {[%clk 0:02:32]} 11. Re1 {[%clk 0:02:24]}  Na6 {[%clk 0:02:29]} 12. Bg5 {[%clk 0:02:19]}  Nc5 {[%clk 0:02:28]} 13. Bf3 {[%clk 0:02:08]}  Bd7 {[%clk 0:02:27]} 14. Qd2 {[%clk 0:02:07]}  Rfe8 {[%clk 0:02:21]} 15. Rad1 {[%clk 0:01:12]}  Rad8 {[%clk 0:02:01]} 16. h4 {[%clk 0:01:06]}  h5 {[%clk 0:01:57]} 17. b3 {[%clk 0:00:44]}  Ng4 {[%clk 0:01:55]} 18. Be2 {[%clk 0:00:35]}  e5 {[%clk 0:01:43]} 19. dxe6 {[%clk 0:00:31]}  Nxe6 {[%clk 0:00:51]} 20. Nxe6 {[%clk 0:00:30]}  Bxe6 {[%clk 0:00:51]} 21. Bxd8 {[%clk 0:00:30]}  Rxd8 {[%clk 0:00:51]} 22. Bxg4 {[%clk 0:00:30]}  hxg4 {[%clk 0:00:51]} 23. Ne2 {[%clk 0:00:27]}  Qe7 {[%clk 0:00:42]} 24. g3 {[%clk 0:00:25]}  d5 {[%clk 0:00:41]} 25. Nf4 {[%clk 0:00:23]}  Bc8 {[%clk 0:00:34]} 26. exd5 {[%clk 0:00:23]}  Qc5 {[%clk 0:00:35]} 27. c4 {[%clk 0:00:21]}  b5 {[%clk 0:00:34]} 28. Qe3 {[%clk 0:00:19]}  Qb4 {[%clk 0:00:21]} 29. dxc6 {[%clk 0:00:16]}  bxc4 {[%clk 0:00:20]} 30. Rxd8+ {[%clk 0:00:15]} 1-0


[Site "https://www.chess.com"]

[Event "Titled Tuesday Blitz January 03 Late 2023"]
[White "Fishbein, Alexander"]
[Black "Keymer, Vincent"]
[WhiteFideId "2000377"]
[BlackFideId "12940690"]
[WhiteElo "2366"]
[BlackElo "2700"]
[Result "0-1"]
[Round "02"]
[TimeControl "180+2"]
[Date "2023.01.03"]
[WhiteClock "0:00:09"]
[BlackClock "0:00:08"]

1. e4 {[%clk 0:03:00]}  c6 {[%clk 0:03:00]} 2. d4 {[%clk 0:02:59]}  d5 {[%clk 0:03:01]} 3. Nc3 {[%clk 0:02:59]}  dxe4 {[%clk 0:03:01]} 4. Nxe4 {[%clk 0:02:59]}  Nf6 {[%clk 0:03:02]} 5. Qd3 {[%clk 0:02:57]}  Nbd7 {[%clk 0:02:39]} 6. Nf3 {[%clk 0:02:56]}  Nxe4 {[%clk 0:02:36]} 7. Qxe4 {[%clk 0:02:55]}  Nf6 {[%clk 0:02:36]} 8. Qd3 {[%clk 0:02:56]}  g6 {[%clk 0:02:36]} 9. Be2 {[%clk 0:02:55]}  Bg7 {[%clk 0:02:36]} 10. O-O {[%clk 0:02:54]}  O-O {[%clk 0:02:37]} 11. Qb3 {[%clk 0:02:45]}  a5 {[%clk 0:02:34]} 12. a4 {[%clk 0:02:42]}  Be6 {[%clk 0:02:31]} 13. Bc4 {[%clk 0:02:37]}  Bxc4 {[%clk 0:02:26]} 14. Qxc4 {[%clk 0:02:36]}  Qd5 {[%clk 0:02:24]} 15. Qe2 {[%clk 0:02:35]}  e6 {[%clk 0:02:22]} 16. c3 {[%clk 0:02:35]}  Rfd8 {[%clk 0:02:15]} 17. h3 {[%clk 0:02:34]}  h6 {[%clk 0:01:52]} 18. Bf4 {[%clk 0:02:32]}  c5 {[%clk 0:01:51]} 19. dxc5 {[%clk 0:02:26]}  Qxc5 {[%clk 0:01:51]} 20. Be5 {[%clk 0:02:18]}  Rd5 {[%clk 0:01:43]} 21. c4 {[%clk 0:02:08]}  Rd7 {[%clk 0:01:37]} 22. b3 {[%clk 0:02:05]}  Rad8 {[%clk 0:01:36]} 23. Rfd1 {[%clk 0:01:46]}  Qb6 {[%clk 0:00:34]} 24. Rxd7 {[%clk 0:01:36]}  Rxd7 {[%clk 0:00:32]} 25. Qc2 {[%clk 0:01:28]}  Nh5 {[%clk 0:00:28]} 26. Bxg7 {[%clk 0:01:25]}  Kxg7 {[%clk 0:00:23]} 27. Qc3+ {[%clk 0:01:23]}  f6 {[%clk 0:00:20]} 28. c5 {[%clk 0:01:12]}  Qc7 {[%clk 0:00:20]} 29. Qc4 {[%clk 0:00:59]}  Nf4 {[%clk 0:00:18]} 30. Re1 {[%clk 0:00:46]}  e5 {[%clk 0:00:15]} 31. Kh2 {[%clk 0:00:23]}  Nd3 {[%clk 0:00:12]} 32. Re3 {[%clk 0:00:17]}  Nxf2 {[%clk 0:00:05]} 33. Kg1 {[%clk 0:00:17]}  Nd1 {[%clk 0:00:04]} 34. Re1 {[%clk 0:00:17]}  Nb2 {[%clk 0:00:04]} 35. Qc3 {[%clk 0:00:16]}  Nd3 {[%clk 0:00:05]} 36. Rd1 {[%clk 0:00:15]}  Qxc5+ {[%clk 0:00:05]} 37. Qxc5 {[%clk 0:00:13]}  Nxc5 {[%clk 0:00:06]} 38. Rxd7+ {[%clk 0:00:11]}  Nxd7 {[%clk 0:00:07]} 39. Kf2 {[%clk 0:00:11]}  Nc5 {[%clk 0:00:06]} 40. Nd2 {[%clk 0:00:11]}  Kf7 {[%clk 0:00:07]} 41. Ke3 {[%clk 0:00:11]}  Ke6 {[%clk 0:00:07]} 42. g4 {[%clk 0:00:10]}  f5 {[%clk 0:00:07]} 43. gxf5+ {[%clk 0:00:09]}  gxf5 {[%clk 0:00:08]} 0-1


[Site "https://www.chess.com"]

[Event "Titled Tuesday Blitz January 03 Late 2023"]
[White "Papp, Levente"]
[Black "Gholami Orimi, Mahdi"]
[WhiteFideId "751243"]
[BlackFideId "12558486"]
[WhiteElo "2353"]
[BlackElo "2420"]
[Result "1-0"]
[Round "02"]
[TimeControl "180+2"]
[Date "2023.01.03"]
[WhiteClock "0:00:06"]
[BlackClock "0:01:11"]

1. c4 {[%clk 0:03:00]}  e5 {[%clk 0:02:57]} 2. g3 {[%clk 0:03:00]}  Nf6 {[%clk 0:02:54]} 3. Bg2 {[%clk 0:03:00]}  Nc6 {[%clk 0:02:44]} 4. Nc3 {[%clk 0:02:58]}  Bb4 {[%clk 0:02:38]} 5. Nd5 {[%clk 0:02:57]}  Nxd5 {[%clk 0:02:37]} 6. cxd5 {[%clk 0:02:56]}  Ne7 {[%clk 0:02:37]} 7. e3 {[%clk 0:02:54]}  O-O {[%clk 0:02:37]} 8. Ne2 {[%clk 0:02:54]}  d6 {[%clk 0:02:37]} 9. O-O {[%clk 0:02:52]}  Ng6 {[%clk 0:02:36]} 10. d4 {[%clk 0:02:41]}  f5 {[%clk 0:02:35]} 11. a3 {[%clk 0:02:07]}  Ba5 {[%clk 0:02:35]} 12. b4 {[%clk 0:02:07]}  Bb6 {[%clk 0:02:35]} 13. dxe5 {[%clk 0:02:03]}  dxe5 {[%clk 0:02:28]} 14. Bb2 {[%clk 0:02:02]}  Bd7 {[%clk 0:02:28]} 15. d6 {[%clk 0:01:43]}  c6 {[%clk 0:02:26]} 16. Qb3+ {[%clk 0:01:42]}  Kh8 {[%clk 0:02:26]} 17. Rfd1 {[%clk 0:01:30]}  f4 {[%clk 0:02:26]} 18. exf4 {[%clk 0:01:28]}  exf4 {[%clk 0:02:26]} 19. Nd4 {[%clk 0:00:46]}  Qg5 {[%clk 0:02:21]} 20. Nf3 {[%clk 0:00:39]}  Qh5 {[%clk 0:01:58]} 21. Re1 {[%clk 0:00:27]}  fxg3 {[%clk 0:01:53]} 22. hxg3 {[%clk 0:00:27]}  Bg4 {[%clk 0:01:53]} 23. Nd4 {[%clk 0:00:17]}  Rf6 {[%clk 0:01:37]} 24. Qc2 {[%clk 0:00:06]}  Rxd6 {[%clk 0:01:34]} 25. Nb3 {[%clk 0:00:07]}  Rf8 {[%clk 0:01:32]} 26. Nc5 {[%clk 0:00:07]}  Bf3 {[%clk 0:01:30]} 27. Qc3 {[%clk 0:00:05]}  Rf7 {[%clk 0:01:14]} 28. Re8+ {[%clk 0:00:05]}  Nf8 {[%clk 0:01:14]} 29. Rxf8+ {[%clk 0:00:05]}  Rxf8 {[%clk 0:01:11]} 30. Qxg7# {[%clk 0:00:06]} 1-0


[Site "https://www.chess.com"]

[Event "Titled Tuesday Blitz January 03 Late 2023"]
[White "Lazavik, Denis"]
[Black "Aldokhin, Ivan"]
[WhiteFideId "13515110"]
[BlackFideId "24115720"]
[WhiteElo "2544"]
[BlackElo "2413"]
[Result "1-0"]
[Round "02"]
[TimeControl "180+2"]
[Date "2023.01.03"]
[WhiteClock "0:01:55"]
[BlackClock "0:00:41"]

1. d4 {[%clk 0:03:00]}  Nf6 {[%clk 0:02:58]} 2. c4 {[%clk 0:03:01]}  g6 {[%clk 0:02:58]} 3. g3 {[%clk 0:03:01]}  Bg7 {[%clk 0:02:59]} 4. Bg2 {[%clk 0:03:02]}  O-O {[%clk 0:02:59]} 5. Nc3 {[%clk 0:03:02]}  d6 {[%clk 0:03:00]} 6. Nf3 {[%clk 0:03:03]}  Nc6 {[%clk 0:03:00]} 7. O-O {[%clk 0:03:03]}  Bf5 {[%clk 0:03:01]} 8. d5 {[%clk 0:03:03]}  Na5 {[%clk 0:03:01]} 9. Nd2 {[%clk 0:03:04]}  c5 {[%clk 0:03:00]} 10. e4 {[%clk 0:03:04]}  Bd7 {[%clk 0:03:01]} 11. Qc2 {[%clk 0:03:02]}  e6 {[%clk 0:02:52]} 12. b3 {[%clk 0:02:56]}  exd5 {[%clk 0:02:50]} 13. cxd5 {[%clk 0:02:56]}  b5 {[%clk 0:02:50]} 14. Bb2 {[%clk 0:02:56]}  Re8 {[%clk 0:02:49]} 15. Nd1 {[%clk 0:02:51]}  Rc8 {[%clk 0:02:44]} 16. Ne3 {[%clk 0:02:51]}  c4 {[%clk 0:02:24]} 17. bxc4 {[%clk 0:02:41]}  Nxc4 {[%clk 0:02:21]} 18. Nexc4 {[%clk 0:02:38]}  bxc4 {[%clk 0:02:21]} 19. Bc3 {[%clk 0:02:38]}  Qb6 {[%clk 0:02:09]} 20. Rab1 {[%clk 0:02:34]}  Qa6 {[%clk 0:01:50]} 21. h3 {[%clk 0:02:26]}  Nh5 {[%clk 0:01:12]} 22. Bxg7 {[%clk 0:02:21]}  Nxg7 {[%clk 0:01:11]} 23. Qc3 {[%clk 0:02:21]}  f5 {[%clk 0:01:06]} 24. Rfe1 {[%clk 0:02:19]}  Rf8 {[%clk 0:00:51]} 25. e5 {[%clk 0:02:10]}  dxe5 {[%clk 0:00:51]} 26. Rxe5 {[%clk 0:02:11]}  f4 {[%clk 0:00:47]} 27. Re7 {[%clk 0:01:58]}  Rf7 {[%clk 0:00:48]} 28. Rxf7 {[%clk 0:01:58]}  Kxf7 {[%clk 0:00:48]} 29. Ne4 {[%clk 0:01:59]}  Bf5 {[%clk 0:00:41]} 30. Rb7+ {[%clk 0:01:55]} 1-0


[Site "https://www.chess.com"]